fUST/lending_fUST_20250201
["ID","MTS","AMOUNT","RATE_DAILY","PERIOD"]
[351172101,1738389055874,-1839.94,0.00017397,2]
[351172102,1738389055883,-558.63508846,0.00017397,2]
[351172103,1738389055893,-500.0,0.00017397,2]
[351172104,1738389055902,-500.0,0.00017397,2]
[351172105,1738389055912,-825.7,0.00017397,2]
[351172106,1738389055922,-549.67,0.00017397,2]
[351172107,1738389055932,-1034.38,0.00017397,2]
[351172108,1738389055942,-590.92,0.00017397,2]
[351172109,1738389055951,-2609.95,0.00017397,2]
[351172110,1738389055961,-500.0,0.00017397,2]
[351172111,1738389055972,-500.0,0.00017397,2]
[351172112,1738389055982,-500.0,0.00017397,2]
[351172113,1738389055992,-833.06,0.00017397,2]
[351172114,1738389056001,-500.0,0.00017397,2]
[351172115,1738389056011,-1159.11,0.00017397,2]
[351172116,1738389056021,-500.0,0.00017397,2]
[351172117,1738389056030,-500.0,0.00017397,2]
[351172118,1738389056042,-151.0,0.000174,2]
[351172119,1738389056052,-500.0,0.00017438,2]
[351172120,1738389056061,-2190.92894837,0.00017521,2]
[351172121,1738389056071,-500.0,0.00017534,2]
[351172122,1738389056081,-500.0,0.00017534,2]
[351172123,1738389056091,-619.15,0.00017534,2]
[351172124,1738389056100,-500.0,0.00017534,2]
[351172125,1738389056110,-500.0,0.00017534,2]
[351172126,1738389056119,-500.0,0.00017534,2]
[351172127,1738389056129,-500.0,0.00017534,2]
[351172128,1738389056138,-500.0,0.00017534,2]
[351172129,1738389056148,-500.0,0.00017534,2]
[351172130,1738389056158,-500.0,0.00017534,2]
[351172131,1738389056168,-500.0,0.00017534,2]
[351172132,1738389056178,-500.0,0.00017534,2]
[351172133,1738389056187,-500.0,0.00017534,2]
[351172134,1738389056197,-500.0,0.00017534,2]
[351172135,1738389056207,-500.0,0.00017534,2]
[351172136,1738389056218,-54978.28,0.00017534,2]
[351172137,1738389056227,-633.5,0.00017534,2]
[351172138,1738389056237,-500.0,0.00017534,2]
[351172139,1738389056247,-500.0,0.00017534,2]
[351172140,1738389056258,-500.0,0.00017534,2]
[351172141,1738389056267,-500.0,0.00017534,2]
[351172142,1738389056278,-1043.7,0.00017534,2]
[351172143,1738389056288,-3190.69,0.00017534,2]
[351172144,1738389056298,-500.0,0.00017534,2]
[351172145,1738389056308,-500.0,0.00017534,2]
[351172146,1738389056318,-500.0,0.00017534,2]
[351172147,1738389056327,-1220.32,0.00017534,2]
[351172148,1738389056337,-635.75,0.00017534,2]
[351172149,1738389056346,-500.0,0.00017534,2]
[351172150,1738389056355,-519.19,0.00017534,2]
[351172151,1738389056364,-500.0,0.00017534,2]
[351172152,1738389056374,-500.0,0.00017534,2]
[351172153,1738389056383,-1075.25,0.00017534,2]
[351172154,1738389056393,-500.0,0.00017534,2]
[351172155,1738389056403,-817.56,0.00017534,2]
[351172156,1738389056412,-1839.94,0.00017534,2]
[351172157,1738389056422,-500.0,0.00017534,2]
[351172158,1738389056432,-500.0,0.00017534,2]
[351172159,1738389056442,-825.7,0.00017534,2]
[351172160,1738389056451,-549.67,0.00017534,2]
[351172161,1738389056461,-1034.38,0.00017534,2]
[351172162,1738389056470,-590.92,0.00017534,2]
[351172163,1738389056480,-2609.95,0.00017534,2]
[351172164,1738389056490,-500.0,0.00017534,2]
[351172165,1738389056499,-626.64430567,0.00017534,2]
[351172166,1738389056509,-500.0,0.00017534,2]
[351172167,1738389056519,-833.06,0.00017534,2]
[351172168,1738389056528,-500.0,0.00017534,2]
[351172169,1738389056539,-1159.11,0.00017534,2]
[351172170,1738389056548,-500.0,0.00017534,2]
[351172171,1738389056558,-500.0,0.00017534,2]
[351172172,1738389056652,-151.0,0.000176,2]
[351172173,1738389056662,-500.0,0.00017671,2]
[351172174,1738389056672,-619.15,0.00017671,2]
[351172175,1738389056681,-500.0,0.00017671,2]
[351172176,1738389056691,-500.0,0.00017671,2]
[351172177,1738389056701,-500.0,0.00017671,2]
[351172178,1738389056710,-548.19,0.00017671,2]
[351172179,1738389056720,-500.0,0.00017671,2]
[351172180,1738389056731,-500.0,0.00017671,2]
[351172181,1738389056741,-54978.28,0.00017671,2]
[351172182,1738389056751,-633.5,0.00017671,2]
[351172183,1738389056760,-500.0,0.00017671,2]
[351172184,1738389056771,-500.0,0.00017671,2]
[351172185,1738389056781,-500.0,0.00017671,2]
[351172186,1738389056794,-500.0,0.00017671,2]
[351172187,1738389056804,-1043.7,0.00017671,2]
[351172188,1738389056814,-3190.69,0.00017671,2]
[351172189,1738389056825,-500.0,0.00017671,2]
[351172190,1738389056839,-500.0,0.00017671,2]
[351172191,1738389056851,-1220.32,0.00017671,2]
[351172192,1738389056861,-635.75,0.00017671,2]
[351172193,1738389056873,-500.0,0.00017671,2]
[351172194,1738389056883,-519.19,0.00017671,2]
[351172195,1738389056893,-500.0,0.00017671,2]
[351172196,1738389056903,-1075.25,0.00017671,2]
[351172197,1738389056913,-500.0,0.00017671,2]
[351172198,1738389056923,-817.56,0.00017671,2]
[351172199,1738389056932,-1839.94,0.00017671,2]
[351172200,1738389056941,-500.0,0.00017671,2]
[351172201,1738389056951,-500.0,0.00017671,2]
[351172202,1738389056962,-825.7,0.00017671,2]
[351172203,1738389056972,-549.67,0.00017671,2]
[351172204,1738389056981,-1034.38,0.00017671,2]
[351172205,1738389056991,-590.92,0.00017671,2]
[351172206,1738389057001,-2609.95,0.00017671,2]
[351172207,1738389057011,-500.0,0.00017671,2]
[351172208,1738389057021,-833.06,0.00017671,2]
[351172209,1738389057031,-500.0,0.00017671,2]
[351172210,1738389057043,-1159.11,0.00017671,2]
[351172211,1738389057053,-363.6,0.00017671,2]
[351172212,1738389057062,-57610.06977161,0.000177,2]
[351172213,1738389057072,-2190.92894837,0.00017728,2]
[351172214,1738389057081,-151.0,0.000178,2]
[351172215,1738389057091,-500.0,0.00017808,2]
[351172216,1738389057101,-619.15,0.00017808,2]
[351172217,1738389057111,-500.0,0.00017808,2]
[351172218,1738389057122,-419.8,0.00017808,2]
[351172219,1738389057132,-500.0,0.00017808,2]
[351172220,1738389057141,-54978.28,0.00017808,2]
[351172221,1738389057151,-633.5,0.00017808,2]
[351172222,1738389057161,-500.0,0.00017808,2]
[351172223,1738389057171,-500.0,0.00017808,2]
[351172224,1738389057181,-500.0,0.00017808,2]
[351172225,1738389057198,-500.0,0.00017808,2]
[351172226,1738389057209,-1043.7,0.00017808,2]
[351172227,1738389057218,-3190.69,0.00017808,2]
[351172228,1738389057228,-500.0,0.00017808,2]
[351172229,1738389057238,-500.0,0.00017808,2]
[351172230,1738389057248,-1220.32,0.00017808,2]
[351172231,1738389057259,-635.75,0.00017808,2]
[351172232,1738389057268,-500.0,0.00017808,2]
[351172233,1738389057278,-519.19,0.00017808,2]
[351172234,1738389057287,-500.0,0.00017808,2]
[351172235,1738389057297,-1075.25,0.00017808,2]
[351172236,1738389057307,-500.0,0.00017808,2]
[351172237,1738389057317,-817.56,0.00017808,2]
[351172238,1738389057327,-1839.94,0.00017808,2]
[351172239,1738389057337,-500.0,0.00017808,2]
[351172240,1738389057346,-500.0,0.00017808,2]
[351172241,1738389057356,-825.7,0.00017808,2]
[351172242,1738389057366,-549.67,0.00017808,2]
[351172243,1738389057375,-1034.38,0.00017808,2]
[351172244,1738389057385,-590.92,0.00017808,2]
[351172245,1738389057395,-2609.95,0.00017808,2]
[351172246,1738389057405,-500.0,0.00017808,2]
[351172247,1738389057415,-833.06,0.00017808,2]
[351172248,1738389057425,-500.0,0.00017808,2]
[351172249,1738389057435,-1159.11,0.00017808,2]
[351172250,1738389057446,-2715.24958309,0.00017859,2]
[351172251,1738389057456,-151.0,0.000179,2]
[351172252,1738389057466,-2190.92894837,0.00017934,2]
[351172253,1738389057475,-500.0,0.00017945,2]
[351172254,1738389057485,-619.15,0.00017945,2]
[351172255,1738389057494,-500.0,0.00017945,2]
[351172256,1738389057504,-500.0,0.00017945,2]
[351172257,1738389057513,-54978.28,0.00017945,2]
[351172258,1738389057523,-633.5,0.00017945,2]
[351172259,1738389057535,-500.0,0.00017945,2]
[351172260,1738389057545,-500.0,0.00017945,2]
[351172261,1738389057554,-500.0,0.00017945,2]
[351172262,1738389057564,-500.0,0.00017945,2]
[351172263,1738389057574,-1043.7,0.00017945,2]
[351172264,1738389057583,-3190.69,0.00017945,2]
[351172265,1738389057592,-500.0,0.00017945,2]
[351172266,1738389057602,-500.0,0.00017945,2]
[351172267,1738389057612,-1220.32,0.00017945,2]
[351172268,1738389057622,-635.75,0.00017945,2]
[351172269,1738389057632,-500.0,0.00017945,2]
[351172270,1738389057642,-519.19,0.00017945,2]
[351172271,1738389057652,-500.0,0.00017945,2]
[351172272,1738389057662,-1075.25,0.00017945,2]
[351172273,1738389057671,-500.0,0.00017945,2]
[351172274,1738389057681,-817.56,0.00017945,2]
[351172275,1738389057691,-1839.94,0.00017945,2]
[351172276,1738389057700,-500.0,0.00017945,2]
[351172277,1738389057710,-500.0,0.00017945,2]
[351172278,1738389057720,-825.7,0.00017945,2]
[351172279,1738389057730,-549.67,0.00017945,2]
[351172280,1738389057739,-1034.38,0.00017945,2]
[351172281,1738389057749,-590.92,0.00017945,2]
[351172282,1738389057759,-2609.95,0.00017945,2]
[351172283,1738389057768,-500.0,0.00017945,2]
[351172284,1738389057779,-833.06,0.00017945,2]
[351172285,1738389057791,-500.0,0.00017945,2]
[351172286,1738389057800,-1159.11,0.00017945,2]
[351172287,1738389057810,-151.0,0.00018,2]
[351172288,1738389057820,-558.32525273,0.00018047,2]
[351172289,1738389057839,-500.0,0.00018082,2]
[351172290,1738389057852,-619.15,0.00018082,2]
[351172291,1738389057862,-500.0,0.00018082,2]
[351172292,1738389057874,-500.0,0.00018082,2]
[351172293,1738389057885,-54978.28,0.00018082,2]
[351172294,1738389057895,-633.5,0.00018082,2]
[351172295,1738389057904,-500.0,0.00018082,2]
[351172296,1738389057914,-500.0,0.00018082,2]
[351172297,1738389057924,-500.0,0.00018082,2]
[351172298,1738389057935,-500.0,0.00018082,2]
[351172299,1738389057945,-1043.7,0.00018082,2]
[351172300,1738389057954,-3190.69,0.00018082,2]
[351172301,1738389057965,-500.0,0.00018082,2]
[351172302,1738389057975,-500.0,0.00018082,2]
[351172303,1738389057985,-1220.32,0.00018082,2]
[351172304,1738389057995,-635.75,0.00018082,2]
[351172305,1738389058005,-242.31,0.00018082,2]
[351172306,1738389058015,-519.19,0.00018082,2]
[351172307,1738389058024,-500.0,0.00018082,2]
[351172308,1738389058034,-1075.25,0.00018082,2]
[351172309,1738389058045,-500.0,0.00018082,2]
[351172310,1738389058055,-817.56,0.00018082,2]
[351172311,1738389058066,-1839.94,0.00018082,2]
[351172312,1738389058076,-500.0,0.00018082,2]
[351172313,1738389058086,-500.0,0.00018082,2]
[351172314,1738389058096,-825.7,0.00018082,2]
[351172315,1738389058106,-549.67,0.00018082,2]
[351172316,1738389058117,-1034.38,0.00018082,2]
[351172317,1738389058127,-590.92,0.00018082,2]
[351172318,1738389058137,-2609.95,0.00018082,2]
[351172319,1738389058147,-500.0,0.00018082,2]
[351172320,1738389058157,-833.06,0.00018082,2]
[351172321,1738389058167,-500.0,0.00018082,2]
[351172322,1738389058178,-1159.11,0.00018082,2]
[351172323,1738389058187,-160.0,0.00018124,3]
[351172324,1738389058197,-2190.92894837,0.00018141,2]
[351172325,1738389058207,-10473.09,0.000182,2]
[351172326,1738389058217,-500.0,0.00018219,2]
[351172327,1738389058227,-619.15,0.00018219,2]
[351172328,1738389058236,-500.0,0.00018219,2]
[351172329,1738389058320,-500.0,0.00018219,2]
[351172330,1738389058330,-54978.28,0.00018219,2]
[351172331,1738389058340,-633.5,0.00018219,2]
[351172332,1738389058352,-500.0,0.00018219,2]
[351172333,1738389058362,-500.0,0.00018219,2]
[351172334,1738389058372,-236.68,0.00018219,2]
[351172335,1738389058382,-358.23,0.00018219,2]
[351172336,1738389058392,-1043.7,0.00018219,2]
[351172337,1738389058401,-3190.69,0.00018219,2]
[351172338,1738389058410,-500.0,0.00018219,2]
[351172339,1738389058420,-500.0,0.00018219,2]
[351172340,1738389058430,-1220.32,0.00018219,2]
[351172341,1738389058440,-635.75,0.00018219,2]
[351172342,1738389058449,-519.19,0.00018219,2]
[351172343,1738389058458,-500.0,0.00018219,2]
[351172344,1738389058468,-1075.25,0.00018219,2]
[351172345,1738389058478,-500.0,0.00018219,2]
[351172346,1738389058487,-817.56,0.00018219,2]
[351172347,1738389058497,-1839.94,0.00018219,2]
[351172348,1738389058506,-500.0,0.00018219,2]
[351172349,1738389058516,-525.16,0.00018219,2]
[351172350,1738389058526,-825.7,0.00018219,2]
[351172351,1738389058535,-549.67,0.00018219,2]
[351172352,1738389058546,-1034.38,0.00018219,2]
[351172353,1738389058556,-590.92,0.00018219,2]
[351172354,1738389058566,-2609.95,0.00018219,2]
[351172355,1738389058576,-500.0,0.00018219,2]
[351172356,1738389058586,-833.06,0.00018219,2]
[351172357,1738389058596,-500.0,0.00018219,2]
[351172358,1738389058605,-1159.11,0.00018219,2]
[351172359,1738389058615,-11600.16,0.000183,2]
[351172360,1738389058624,-158.268,0.00018348,2]
[351172361,1738389058633,-172.463,0.00018348,2]
[351172362,1738389058643,-2190.92894837,0.00018348,2]
[351172363,1738389058653,-500.0,0.00018356,2]
[351172364,1738389058663,-619.15,0.00018356,2]
[351172365,1738389058673,-500.0,0.00018356,2]
[351172366,1738389058683,-500.0,0.00018356,2]
[351172367,1738389058692,-54978.28,0.00018356,2]
[351172368,1738389058702,-633.5,0.00018356,2]
[351172369,1738389058711,-500.0,0.00018356,2]
[351172370,1738389058721,-500.0,0.00018356,2]
[351172371,1738389058731,-1043.7,0.00018356,2]
[351172372,1738389058741,-3190.69,0.00018356,2]
[351172373,1738389058750,-500.0,0.00018356,2]
[351172374,1738389058761,-500.0,0.00018356,2]
[351172375,1738389058770,-1220.32,0.00018356,2]
[351172376,1738389058780,-635.75,0.00018356,2]
[351172377,1738389058791,-519.19,0.00018356,2]
[351172378,1738389058802,-269.03,0.00018356,2]
[351172379,1738389058812,-1075.25,0.00018356,2]
[351172380,1738389058821,-500.0,0.00018356,2]
[351172381,1738389058831,-817.56,0.00018356,2]
[351172382,1738389058843,-1839.94,0.00018356,2]
[351172383,1738389058852,-500.0,0.00018356,2]
[351172384,1738389058863,-825.7,0.00018356,2]
[351172385,1738389058873,-549.67,0.00018356,2]
[351172386,1738389058883,-1034.38,0.00018356,2]
[351172387,1738389058892,-590.92,0.00018356,2]
[351172388,1738389058901,-2609.95,0.00018356,2]
[351172389,1738389058911,-364.18,0.00018356,2]
[351172390,1738389058921,-833.06,0.00018356,2]
[351172391,1738389058931,-500.0,0.00018356,2]
[351172392,1738389058941,-1159.11,0.00018356,2]
[351172393,1738389058951,-2715.24958309,0.00018421,2]
[351172394,1738389058960,-500.0,0.00018493,2]
[351172395,1738389058970,-619.15,0.00018493,2]
[351172396,1738389058981,-500.0,0.00018493,2]
[351172397,1738389058991,-500.0,0.00018493,2]
[351172398,1738389059002,-54978.28,0.00018493,2]
[351172399,1738389059012,-633.5,0.00018493,2]
[351172400,1738389059022,-500.0,0.00018493,2]
[351172401,1738389059032,-500.0,0.00018493,2]
[351172402,1738389059043,-1043.7,0.00018493,2]
[351172403,1738389059052,-3190.69,0.00018493,2]
[351172404,1738389059062,-500.0,0.00018493,2]
[351172405,1738389059073,-500.0,0.00018493,2]
[351172406,1738389059083,-1220.32,0.00018493,2]
[351172407,1738389059092,-635.75,0.00018493,2]
[351172408,1738389059101,-519.19,0.00018493,2]
[351172409,1738389059111,-1075.25,0.00018493,2]
[351172410,1738389059121,-433.6,0.00018493,2]
[351172411,1738389059131,-817.56,0.00018493,2]
[351172412,1738389059140,-1839.94,0.00018493,2]
[351172413,1738389059150,-500.0,0.00018493,2]
[351172414,1738389059160,-825.7,0.00018493,2]
[351172415,1738389059169,-549.67,0.00018493,2]
[351172416,1738389059179,-1034.38,0.00018493,2]
[351172417,1738389059189,-590.92,0.00018493,2]
[351172418,1738389059199,-2609.95,0.00018493,2]
[351172419,1738389059209,-833.06,0.00018493,2]
[351172420,1738389059219,-500.0,0.00018493,2]
[351172421,1738389059229,-1159.11,0.00018493,2]
[351172422,1738389059239,-500.0,0.00018534,2]
[351172423,1738389059248,-154.64,0.0001855,2]
[351172424,1738389059258,-2190.92894837,0.00018555,2]
[351172425,1738389059267,-500.0,0.0001863,2]
[351172426,1738389059276,-619.15,0.0001863,2]
[351172427,1738389059286,-573.49,0.0001863,2]
[351172428,1738389059297,-500.0,0.0001863,2]
[351172429,1738389059310,-54978.28,0.0001863,2]
[351172430,1738389059320,-633.5,0.0001863,2]
[351172431,1738389059329,-500.0,0.0001863,2]
[351172432,1738389059339,-500.0,0.0001863,2]
[351172433,1738389059349,-1043.7,0.0001863,2]
[351172434,1738389059360,-3190.69,0.0001863,2]
[351172435,1738389059370,-500.0,0.0001863,2]
[351172436,1738389059380,-500.0,0.0001863,2]
[351172437,1738389059390,-1220.32,0.0001863,2]
[351172438,1738389059399,-635.75,0.0001863,2]
[351172439,1738389059408,-519.19,0.0001863,2]
[351172440,1738389059418,-1075.25,0.0001863,2]
[351172441,1738389059429,-817.56,0.0001863,2]
[351172442,1738389059439,-1839.94,0.0001863,2]
[351172443,1738389059449,-500.0,0.0001863,2]
[351172444,1738389059458,-825.7,0.0001863,2]
[351172445,1738389059468,-549.67,0.0001863,2]
[351172446,1738389059478,-1034.38,0.0001863,2]
[351172447,1738389059488,-590.92,0.0001863,2]
[351172448,1738389059497,-2609.95,0.0001863,2]
[351172449,1738389059507,-833.06,0.0001863,2]
[351172450,1738389059517,-500.0,0.0001863,2]
[351172451,1738389059527,-1159.11,0.0001863,2]
[351172452,1738389059536,-500.0,0.0001875,2]
[351172453,1738389059547,-500.0,0.0001875,2]
[351172454,1738389059557,-500.0,0.0001875,2]
[351172455,1738389059567,-2190.92894837,0.00018762,2]
[351172456,1738389059577,-500.0,0.00018767,2]
[351172457,1738389059587,-619.15,0.00018767,2]
[351172458,1738389059597,-639.7,0.00018767,2]
[351172459,1738389059607,-54978.28,0.00018767,2]
[351172460,1738389059617,-633.5,0.00018767,2]
[351172461,1738389059627,-500.0,0.00018767,2]
[351172462,1738389059636,-387.05,0.00018767,2]
[351172463,1738389059647,-1043.7,0.00018767,2]
[351172464,1738389059656,-3190.69,0.00018767,2]
[351172465,1738389059669,-500.0,0.00018767,2]
[351172466,1738389059678,-500.0,0.00018767,2]
[351172467,1738389059688,-1220.32,0.00018767,2]
[351172468,1738389059697,-635.75,0.00018767,2]
[351172469,1738389059706,-519.19,0.00018767,2]
[351172470,1738389059716,-1075.25,0.00018767,2]
[351172471,1738389059726,-817.56,0.00018767,2]
[351172472,1738389059736,-1839.94,0.00018767,2]
[351172473,1738389059746,-500.0,0.00018767,2]
[351172474,1738389059832,-825.7,0.00018767,2]
[351172475,1738389059843,-549.67,0.00018767,2]
[351172476,1738389059853,-1034.38,0.00018767,2]
[351172477,1738389059863,-590.92,0.00018767,2]
[351172478,1738389059874,-2609.95,0.00018767,2]
[351172479,1738389059884,-833.06,0.00018767,2]
[351172480,1738389059893,-500.0,0.00018767,2]
[351172481,1738389059903,-1159.11,0.00018767,2]
[351172482,1738389059912,-160.0,0.00018767,4]
[351172483,1738389059922,-166.96946237,0.00018767,5]
[351172484,1738389059932,-500.0,0.00018833,2]
[351172485,1738389059942,-558.32525273,0.00018902,2]
[351172486,1738389059952,-595.44,0.00018904,2]
[351172487,1738389059962,-619.15,0.00018904,2]
[351172488,1738389059972,-54978.28,0.00018904,2]
[351172489,1738389059982,-633.5,0.00018904,2]
[351172490,1738389059992,-500.0,0.00018904,2]
[351172491,1738389060002,-1043.7,0.00018904,2]
[351172492,1738389060012,-3190.69,0.00018904,2]
[351172493,1738389060023,-500.0,0.00018904,2]
[351172494,1738389060033,-500.0,0.00018904,2]
[351172495,1738389060046,-1220.32,0.00018904,2]
[351172496,1738389060056,-635.75,0.00018904,2]
[351172497,1738389060067,-519.19,0.00018904,2]
[351172498,1738389060078,-1075.25,0.00018904,2]
[351172499,1738389060088,-817.56,0.00018904,2]
[351172500,1738389060098,-1839.94,0.00018904,2]
[351172501,1738389060108,-500.0,0.00018904,2]
[351172502,1738389060119,-825.7,0.00018904,2]
[351172503,1738389060130,-549.67,0.00018904,2]
[351172504,1738389060139,-1034.38,0.00018904,2]
[351172505,1738389060150,-590.92,0.00018904,2]
[351172506,1738389060159,-2609.95,0.00018904,2]
[351172507,1738389060170,-833.06,0.00018904,2]
[351172508,1738389060180,-500.0,0.00018904,2]
[351172509,1738389060190,-1159.11,0.00018904,2]
[351172510,1738389060200,-2190.92894837,0.00018969,2]
[351172511,1738389060210,-2715.24958309,0.00018983,2]
[351172512,1738389060220,-3695.5,0.00019,2]
[351172513,1738389060230,-619.15,0.00019041,2]
[351172514,1738389060241,-54978.28,0.00019041,2]
[351172515,1738389060252,-633.5,0.00019041,2]
[351172516,1738389060262,-500.0,0.00019041,2]
[351172517,1738389060273,-1043.7,0.00019041,2]
[351172518,1738389060283,-3190.69,0.00019041,2]
[351172519,1738389060293,-500.0,0.00019041,2]
[351172520,1738389060303,-500.0,0.00019041,2]
[351172521,1738389060313,-1220.32,0.00019041,2]
[351172522,1738389060323,-635.75,0.00019041,2]
[351172523,1738389060332,-519.19,0.00019041,2]
[351172524,1738389060342,-1075.25,0.00019041,2]
[351172525,1738389060352,-817.56,0.00019041,2]
[351172526,1738389060362,-1839.94,0.00019041,2]
[351172527,1738389060372,-500.0,0.00019041,2]
[351172528,1738389060382,-825.7,0.00019041,2]
[351172529,1738389060391,-549.67,0.00019041,2]
[351172530,1738389060401,-1034.38,0.00019041,2]
[351172531,1738389060411,-590.92,0.00019041,2]
[351172532,1738389060421,-2609.95,0.00019041,2]
[351172533,1738389060431,-833.06,0.00019041,2]
[351172534,1738389060444,-500.0,0.00019041,2]
[351172535,1738389060459,-1159.11,0.00019041,2]
[351172536,1738389060468,-153.46621102,0.00019096,2]
[351172537,1738389060477,-6231.37845344,0.00019114,2]
[351172538,1738389060487,-2190.92894837,0.00019176,2]
[351172539,1738389060496,-507.73467831,0.00019178,7]
[351172540,1738389060506,-619.15,0.00019178,2]
[351172541,1738389060516,-54978.28,0.00019178,2]
[351172542,1738389060526,-633.5,0.00019178,2]
[351172543,1738389060536,-500.0,0.00019178,2]
[351172544,1738389060546,-1043.7,0.00019178,2]
[351172545,1738389060556,-3190.69,0.00019178,2]
[351172546,1738389060566,-500.0,0.00019178,2]
[351172547,1738389060575,-512.64,0.00019178,2]
[351172548,1738389060585,-1220.32,0.00019178,2]
[351172549,1738389060595,-635.75,0.00019178,2]
[351172550,1738389060605,-519.19,0.00019178,2]
[351172551,1738389060614,-1075.25,0.00019178,2]
[351172552,1738389060623,-817.56,0.00019178,2]
[351172553,1738389060632,-1839.94,0.00019178,2]
[351172554,1738389060642,-500.0,0.00019178,2]
[351172555,1738389060652,-825.7,0.00019178,2]
[351172556,1738389060661,-549.67,0.00019178,2]
[351172557,1738389060671,-1034.38,0.00019178,2]
[351172558,1738389060681,-590.92,0.00019178,2]
[351172559,1738389060691,-2609.95,0.00019178,2]
[351172560,1738389060701,-833.06,0.00019178,2]
[351172561,1738389060710,-504.08,0.00019178,2]
[351172562,1738389060720,-1159.11,0.00019178,2]
[351172563,1738389060731,-162.518657,0.00019178,2]
[351172564,1738389060740,-1004.21979628,0.00019298,2]
[351172565,1738389060750,-1000.0,0.00019298,2]
[351172566,1738389060760,-1000.0,0.00019298,2]
[351172567,1738389060769,-619.15,0.00019315,2]
[351172568,1738389060780,-54978.28,0.00019315,2]
[351172569,1738389060792,-633.5,0.00019315,2]
[351172570,1738389060803,-472.76,0.00019315,2]
[351172571,1738389060813,-1043.7,0.00019315,2]
[351172572,1738389060823,-3190.69,0.00019315,2]
[351172573,1738389060834,-500.0,0.00019315,2]
[351172574,1738389060843,-1220.32,0.00019315,2]
[351172575,1738389060853,-635.75,0.00019315,2]
[351172576,1738389060863,-519.19,0.00019315,2]
[351172577,1738389060873,-1075.25,0.00019315,2]
[351172578,1738389060883,-817.56,0.00019315,2]
[351172579,1738389060893,-1839.94,0.00019315,2]
[351172580,1738389060903,-267.62,0.00019315,2]
[351172581,1738389060912,-825.7,0.00019315,2]
[351172582,1738389060922,-549.67,0.00019315,2]
[351172583,1738389060932,-1034.38,0.00019315,2]
[351172584,1738389060942,-590.92,0.00019315,2]
[351172585,1738389060952,-2609.95,0.00019315,2]
[351172586,1738389060962,-833.06,0.00019315,2]
[351172587,1738389060972,-1159.11,0.00019315,2]
[351172588,1738389060982,-153.46621101,0.00019342,2]
[351172589,1738389060991,-501.14795475,0.00019381,2]
[351172590,1738389061001,-2190.92894837,0.00019383,2]
[351172591,1738389061011,-153.0,0.00019428,2]
[351172592,1738389061021,-153.0,0.00019428,2]
[351172593,1738389061031,-153.0,0.00019428,2]
[351172594,1738389061040,-153.0,0.00019432,2]
[351172595,1738389061049,-153.0,0.00019432,2]
[351172596,1738389061059,-153.0,0.00019432,2]
[351172597,1738389061068,-153.0,0.00019432,2]
[351172598,1738389061078,-619.15,0.00019452,2]
[351172599,1738389061088,-54978.28,0.00019452,2]
[351172600,1738389061097,-633.5,0.00019452,2]